[Event "January 2 Late 2024"]
[Site "https://www.chess.com"]
[Date "2024.01.02"]
[Round "1"]
[White "Kappeler, Kaspar"]
[Black "Zomorrodian, Eilia"]
[Result "0-1"]
[Board "190"]
[TimeControl "180+1"]
[WhiteFideId "1309072"]
[BlackFideId "12551805"]
[WhiteElo "2251"]
[BlackElo "2586"]
[WhiteTeam "SUI"]
[BlackTeam "CAN"]
[WhiteClock "0:00:00"]
[BlackClock "0:02:18"]

1. c4 {[%clk 0:02:54]}  Nf6 {[%clk 0:02:58]} 2. Nf3 {[%clk 0:02:52]}  e6 {[%clk 0:02:59]} 3. g3 {[%clk 0:02:47]}  b6 {[%clk 0:02:59]} 4. Bg2 {[%clk 0:02:43]}  Bb7 {[%clk 0:03:00]} 5. O-O {[%clk 0:02:43]}  Be7 {[%clk 0:03:00]} 6. Nc3 {[%clk 0:02:39]}  O-O {[%clk 0:02:59]} 7. Re1 {[%clk 0:02:34]}  Ne4 {[%clk 0:02:57]} 8. Nxe4 {[%clk 0:02:19]}  Bxe4 {[%clk 0:02:58]} 9. d3 {[%clk 0:02:19]}  Bb7 {[%clk 0:02:57]} 10. e4 {[%clk 0:02:19]}  c5 {[%clk 0:02:57]} 11. b3 {[%clk 0:02:09]}  d6 {[%clk 0:02:52]} 12. Bb2 {[%clk 0:02:04]}  Bf6 {[%clk 0:02:47]} 13. Bxf6 {[%clk 0:01:50]}  Qxf6 {[%clk 0:02:48]} 14. e5 {[%clk 0:01:46]}  dxe5 {[%clk 0:02:43]} 15. Nxe5 {[%clk 0:01:38]}  Bxg2 {[%clk 0:02:44]} 16. Kxg2 {[%clk 0:01:37]}  Rd8 {[%clk 0:02:40]} 17. Qf3 {[%clk 0:01:32]}  Qxf3+ {[%clk 0:02:38]} 18. Kxf3 {[%clk 0:01:24]}  f6 {[%clk 0:02:38]} 19. Ng4 {[%clk 0:01:13]}  Rxd3+ {[%clk 0:02:33]} 20. Ke2 {[%clk 0:01:12]}  Rd4 {[%clk 0:02:31]} 21. Ne3 {[%clk 0:00:46]}  Nc6 {[%clk 0:02:31]} 22. Rad1 {[%clk 0:00:43]}  Rad8 {[%clk 0:02:29]} 23. Rxd4 {[%clk 0:00:37]}  Nxd4+ {[%clk 0:02:21]} 24. Kf1 {[%clk 0:00:31]}  Nf3 {[%clk 0:02:18]} 25. Rd1 {[%clk 0:00:21]}  Rxd1+ {[%clk 0:02:18]} 26. Nxd1 {[%clk 0:00:16]}  Nxh2+ {[%clk 0:02:19]} 27. Ke2 {[%clk 0:00:16]}  Ng4 {[%clk 0:02:20]} 28. Nc3 {[%clk 0:00:00]}  Ne5 {[%clk 0:02:18]} 0-1

[Event "January 2 Late 2024"]
[Site "https://www.chess.com"]
[Date "2024.01.02"]
[Round "1"]
[White "Andrews, Todd"]
[Black "Andersson, Bjorn 1971"]
[Result "1-0"]
[Board "191"]
[TimeControl "180+1"]
[WhiteFideId "2012456"]
[BlackFideId "1702114"]
[WhiteElo "2586"]
[BlackElo "2248"]
[WhiteTeam "USA"]
[BlackTeam "SWE"]
[WhiteClock "0:01:12"]
[BlackClock "0:00:05"]

1. d4 {[%clk 0:03:00]}  g6 {[%clk 0:02:22]} 2. c4 {[%clk 0:03:00]}  Bg7 {[%clk 0:02:23]} 3. Nf3 {[%clk 0:03:00]}  c5 {[%clk 0:02:23]} 4. d5 {[%clk 0:03:00]}  d6 {[%clk 0:02:23]} 5. Nc3 {[%clk 0:02:58]}  Na6 {[%clk 0:02:17]} 6. e4 {[%clk 0:02:57]}  Nc7 {[%clk 0:02:17]} 7. a4 {[%clk 0:02:56]}  Bg4 {[%clk 0:02:16]} 8. Be2 {[%clk 0:02:56]}  Bxf3 {[%clk 0:02:16]} 9. Bxf3 {[%clk 0:02:56]}  Nf6 {[%clk 0:02:17]} 10. O-O {[%clk 0:02:56]}  O-O {[%clk 0:02:11]} 11. Bf4 {[%clk 0:02:55]}  Na6 {[%clk 0:02:09]} 12. e5 {[%clk 0:02:51]}  Ne8 {[%clk 0:02:08]} 13. Re1 {[%clk 0:02:49]}  Nb4 {[%clk 0:02:02]} 14. Qd2 {[%clk 0:02:45]}  a6 {[%clk 0:01:57]} 15. h4 {[%clk 0:02:44]}  e6 {[%clk 0:01:45]} 16. dxe6 {[%clk 0:02:38]}  fxe6 {[%clk 0:01:41]} 17. exd6 {[%clk 0:02:38]}  Rxf4 {[%clk 0:01:37]} 18. Qxf4 {[%clk 0:02:38]}  Nd3 {[%clk 0:01:37]} 19. Qe4 {[%clk 0:02:30]}  Nxe1 {[%clk 0:01:37]} 20. Qxe6+ {[%clk 0:02:30]}  Kh8 {[%clk 0:01:36]} 21. Rxe1 {[%clk 0:02:27]}  Qxd6 {[%clk 0:01:33]} 22. Bxb7 {[%clk 0:02:12]}  Rb8 {[%clk 0:01:25]} 23. Bd5 {[%clk 0:02:09]}  Qxe6 {[%clk 0:01:23]} 24. Rxe6 {[%clk 0:02:08]}  Nc7 {[%clk 0:01:23]} 25. Re2 {[%clk 0:01:57]}  Bd4 {[%clk 0:01:18]} 26. a5 {[%clk 0:01:52]}  Rd8 {[%clk 0:01:11]} 27. g3 {[%clk 0:01:44]}  Bxc3 {[%clk 0:00:52]} 28. bxc3 {[%clk 0:01:44]}  Rd7 {[%clk 0:00:39]} 29. Rb2 {[%clk 0:01:30]}  Nxd5 {[%clk 0:00:27]} 30. cxd5 {[%clk 0:01:30]}  Rxd5 {[%clk 0:00:27]} 31. Rb6 {[%clk 0:01:29]}  Rd3 {[%clk 0:00:28]} 32. Rxa6 {[%clk 0:01:27]}  Rxc3 {[%clk 0:00:28]} 33. Rc6 {[%clk 0:01:27]}  Kg7 {[%clk 0:00:26]} 34. Kf1 {[%clk 0:01:24]}  c4 {[%clk 0:00:25]} 35. Ke2 {[%clk 0:01:25]}  Ra3 {[%clk 0:00:25]} 36. a6 {[%clk 0:01:25]}  Ra2+ {[%clk 0:00:21]} 37. Ke3 {[%clk 0:01:25]}  c3 {[%clk 0:00:21]} 38. Rc7+ {[%clk 0:01:19]}  Kh6 {[%clk 0:00:20]} 39. a7 {[%clk 0:01:19]}  c2 {[%clk 0:00:20]} 40. Kd2 {[%clk 0:01:19]}  Kh5 {[%clk 0:00:18]} 41. Rxh7+ {[%clk 0:01:15]}  Kg4 {[%clk 0:00:18]} 42. Rc7 {[%clk 0:01:13]}  Kf3 {[%clk 0:00:18]} 43. Rf7+ {[%clk 0:01:11]}  Kg2 {[%clk 0:00:16]} 44. g4 {[%clk 0:01:11]}  Kh3 {[%clk 0:00:16]} 45. h5 {[%clk 0:01:11]}  gxh5 {[%clk 0:00:05]} 46. gxh5 {[%clk 0:01:12]} 1-0

[Event "January 2 Late 2024"]
[Site "https://www.chess.com"]
[Date "2024.01.02"]
[Round "1"]
[White "Rose, Felix"]
[Black "Avramidou, Anastasia"]
[Result "0-1"]
[Board "192"]
[TimeControl "180+1"]
[WhiteFideId "5105722"]
[BlackFideId "4239873"]
[WhiteElo "2243"]
[BlackElo "2585"]
[WhiteTeam "MEX"]
[BlackTeam "GRE"]
[WhiteClock "0:00:29"]
[BlackClock "0:02:09"]

1. e4 {[%clk 0:02:59]}  g6 {[%clk 0:02:59]} 2. d4 {[%clk 0:02:59]}  Bg7 {[%clk 0:03:00]} 3. Nf3 {[%clk 0:02:58]}  d6 {[%clk 0:02:59]} 4. Nc3 {[%clk 0:02:59]}  a6 {[%clk 0:03:00]} 5. a4 {[%clk 0:02:59]}  b6 {[%clk 0:03:00]} 6. Be3 {[%clk 0:02:57]}  Bb7 {[%clk 0:03:00]} 7. h3 {[%clk 0:02:55]}  Nf6 {[%clk 0:03:00]} 8. Bd3 {[%clk 0:02:39]}  O-O {[%clk 0:02:57]} 9. O-O {[%clk 0:02:38]}  Re8 {[%clk 0:02:57]} 10. Qd2 {[%clk 0:02:32]}  e5 {[%clk 0:02:56]} 11. d5 {[%clk 0:02:27]}  Nbd7 {[%clk 0:02:50]} 12. a5 {[%clk 0:02:02]}  b5 {[%clk 0:02:49]} 13. b4 {[%clk 0:02:01]}  Nh5 {[%clk 0:02:48]} 14. Ne2 {[%clk 0:01:52]}  f5 {[%clk 0:02:40]} 15. Bg5 {[%clk 0:01:40]}  Qc8 {[%clk 0:02:39]} 16. Nc3 {[%clk 0:01:10]}  Ndf6 {[%clk 0:02:32]} 17. Rfe1 {[%clk 0:00:56]}  Qd7 {[%clk 0:02:21]} 18. Bh6 {[%clk 0:00:49]}  Nf4 {[%clk 0:02:10]} 19. Rad1 {[%clk 0:00:29]}  Bxh6 {[%clk 0:02:09]} 0-1

[Event "January 2 Late 2024"]
[Site "https://www.chess.com"]
[Date "2024.01.02"]
[Round "1"]
[White "Shubenkova, Veronika"]
[Black "Slavin, Alexey"]
[Result "1-0"]
[Board "193"]
[TimeControl "180+1"]
[WhiteFideId "44124040"]
[BlackFideId "24104388"]
[WhiteElo "2584"]
[BlackElo "2243"]
[WhiteTeam "RUS"]
[BlackTeam "RUS"]
[WhiteClock "0:02:03"]
[BlackClock "0:00:30"]

1. e4 {[%clk 0:02:58]}  Nc6 {[%clk 0:02:59]} 2. d4 {[%clk 0:02:58]}  d6 {[%clk 0:03:00]} 3. d5 {[%clk 0:02:58]}  Ne5 {[%clk 0:03:00]} 4. c4 {[%clk 0:02:58]}  Nf6 {[%clk 0:02:59]} 5. Nc3 {[%clk 0:02:58]}  g6 {[%clk 0:02:57]} 6. f3 {[%clk 0:02:58]}  Bg7 {[%clk 0:02:56]} 7. Be3 {[%clk 0:02:58]}  O-O {[%clk 0:02:56]} 8. Qd2 {[%clk 0:02:58]}  Re8 {[%clk 0:02:55]} 9. O-O-O {[%clk 0:02:57]}  c6 {[%clk 0:02:55]} 10. h3 {[%clk 0:02:54]}  cxd5 {[%clk 0:02:54]} 11. cxd5 {[%clk 0:02:53]}  a6 {[%clk 0:02:54]} 12. f4 {[%clk 0:02:50]}  Ned7 {[%clk 0:02:53]} 13. Nf3 {[%clk 0:02:50]}  b5 {[%clk 0:02:53]} 14. e5 {[%clk 0:02:50]}  Nh5 {[%clk 0:02:49]} 15. e6 {[%clk 0:02:43]}  fxe6 {[%clk 0:02:46]} 16. dxe6 {[%clk 0:02:43]}  Nf8 {[%clk 0:02:38]} 17. f5 {[%clk 0:02:26]}  gxf5 {[%clk 0:02:32]} 18. g4 {[%clk 0:02:25]}  Ng3 {[%clk 0:02:28]} 19. Rg1 {[%clk 0:02:23]}  Nxf1 {[%clk 0:02:27]} 20. Rdxf1 {[%clk 0:02:23]}  f4 {[%clk 0:02:07]} 21. Bd4 {[%clk 0:02:22]}  Nxe6 {[%clk 0:02:06]} 22. Bxg7 {[%clk 0:02:20]}  Nxg7 {[%clk 0:02:04]} 23. Qxf4 {[%clk 0:02:19]}  Rf8 {[%clk 0:02:01]} 24. Qh6 {[%clk 0:02:19]}  Rf6 {[%clk 0:01:56]} 25. Qh4 {[%clk 0:02:18]}  Qf8 {[%clk 0:01:33]} 26. Nd5 {[%clk 0:02:18]}  Rxf3 {[%clk 0:01:21]} 27. Nxe7+ {[%clk 0:02:16]}  Qxe7 {[%clk 0:01:07]} 28. Qxe7 {[%clk 0:02:16]}  Rxf1+ {[%clk 0:01:00]} 29. Rxf1 {[%clk 0:02:15]}  Be6 {[%clk 0:01:01]} 30. Qxd6 {[%clk 0:02:13]}  Bxa2 {[%clk 0:00:56]} 31. h4 {[%clk 0:02:11]}  Rc8+ {[%clk 0:00:55]} 32. Kd2 {[%clk 0:02:10]}  Bc4 {[%clk 0:00:51]} 33. Rf4 {[%clk 0:02:07]}  Ne6 {[%clk 0:00:43]} 34. Rxc4 {[%clk 0:02:03]}  Rd8 {[%clk 0:00:30]} 35. Rc8 {[%clk 0:02:03]} 1-0

[Event "January 2 Late 2024"]
[Site "https://www.chess.com"]
[Date "2024.01.02"]
[Round "1"]
[White "Perry, Patrick"]
[Black "Colas, Joshua"]
[Result "1-0"]
[Board "196"]
[TimeControl "180+1"]
[WhiteFideId "30917727"]
[BlackFideId "2044447"]
[WhiteElo "2223"]
[BlackElo "2577"]
[WhiteTeam "USA"]
[BlackTeam "USA"]
[WhiteClock "0:01:46"]
[BlackClock "0:01:40"]

1. e4 {[%clk 0:03:00]}  c5 {[%clk 0:02:56]} 2. d4 {[%clk 0:02:59]}  cxd4 {[%clk 0:02:56]} 3. Nf3 {[%clk 0:02:58]}  Nf6 {[%clk 0:02:54]} 4. e5 {[%clk 0:02:58]}  Nd5 {[%clk 0:02:54]} 5. Qxd4 {[%clk 0:02:58]}  e6 {[%clk 0:02:50]} 6. Bc4 {[%clk 0:02:58]}  Nc6 {[%clk 0:02:50]} 7. Qe4 {[%clk 0:02:59]}  Nb6 {[%clk 0:02:45]} 8. Bb3 {[%clk 0:02:57]}  d6 {[%clk 0:02:38]} 9. O-O {[%clk 0:02:55]}  dxe5 {[%clk 0:02:37]} 10. Nxe5 {[%clk 0:02:55]}  Nxe5 {[%clk 0:02:37]} 11. Qxe5 {[%clk 0:02:55]}  Qf6 {[%clk 0:02:33]} 12. Qxf6 {[%clk 0:02:51]}  gxf6 {[%clk 0:02:34]} 13. Nc3 {[%clk 0:02:52]}  Bd7 {[%clk 0:02:29]} 14. Be3 {[%clk 0:02:50]}  Bc6 {[%clk 0:02:18]} 15. a4 {[%clk 0:02:49]}  a6 {[%clk 0:02:10]} 16. Bxb6 {[%clk 0:02:48]}  Rg8 {[%clk 0:02:07]} 17. g3 {[%clk 0:02:48]}  h5 {[%clk 0:02:07]} 18. Rfe1 {[%clk 0:02:43]}  h4 {[%clk 0:02:07]} 19. Bd5 {[%clk 0:02:39]}  Bd7 {[%clk 0:02:01]} 20. Bg2 {[%clk 0:02:35]}  hxg3 {[%clk 0:01:59]} 21. hxg3 {[%clk 0:02:34]}  Bb4 {[%clk 0:01:57]} 22. a5 {[%clk 0:02:32]}  f5 {[%clk 0:01:56]} 23. Bxb7 {[%clk 0:02:31]}  Rb8 {[%clk 0:01:55]} 24. Bxa6 {[%clk 0:02:29]}  f4 {[%clk 0:01:56]} 25. Ne4 {[%clk 0:02:08]}  Ke7 {[%clk 0:01:44]} 26. c3 {[%clk 0:02:05]}  fxg3 {[%clk 0:01:42]} 27. cxb4 {[%clk 0:02:00]}  g2 {[%clk 0:01:43]} 28. Be2 {[%clk 0:01:51]}  f5 {[%clk 0:01:40]} 29. Ng3 {[%clk 0:01:50]}  f4 {[%clk 0:01:40]} 30. Kxg2 {[%clk 0:01:49]}  fxg3 {[%clk 0:01:40]} 31. fxg3 {[%clk 0:01:49]}  Rbc8 {[%clk 0:01:40]} 32. Bf3 {[%clk 0:01:48]}  Rc2+ {[%clk 0:01:40]} 33. Re2 {[%clk 0:01:46]}  Rc4 {[%clk 0:01:40]} 1-0

[Event "January 2 Late 2024"]
[Site "https://www.chess.com"]
[Date "2024.01.02"]
[Round "1"]
[White "AmanteDeMoi"]
[Black "Andreassen, Lars"]
[Result "1-0"]
[Board "199"]
[TimeControl "180+1"]
[BlackFideId "1504878"]
[WhiteElo "2574"]
[BlackElo "2215"]
[BlackTeam "NOR"]
[WhiteClock "0:00:31"]
[BlackClock "0:00:03"]

1. Nf3 {[%clk 0:03:00]}  d6 {[%clk 0:02:58]} 2. e3 {[%clk 0:03:01]}  e5 {[%clk 0:02:58]} 3. d4 {[%clk 0:03:02]}  e4 {[%clk 0:02:51]} 4. Nfd2 {[%clk 0:03:02]}  d5 {[%clk 0:02:51]} 5. c4 {[%clk 0:03:03]}  c6 {[%clk 0:02:50]} 6. Nc3 {[%clk 0:03:04]}  Nf6 {[%clk 0:02:45]} 7. Be2 {[%clk 0:02:54]}  Bb4 {[%clk 0:02:37]} 8. O-O {[%clk 0:02:52]}  O-O {[%clk 0:02:36]} 9. Qb3 {[%clk 0:02:50]}  Bxc3 {[%clk 0:02:35]} 10. bxc3 {[%clk 0:02:50]}  Nbd7 {[%clk 0:02:34]} 11. Ba3 {[%clk 0:02:43]}  Re8 {[%clk 0:02:33]} 12. cxd5 {[%clk 0:02:41]}  cxd5 {[%clk 0:02:31]} 13. c4 {[%clk 0:02:41]}  dxc4 {[%clk 0:02:29]} 14. Bxc4 {[%clk 0:02:40]}  Nb6 {[%clk 0:01:49]} 15. Bxf7+ {[%clk 0:02:37]}  Kh8 {[%clk 0:01:50]} 16. Bxe8 {[%clk 0:02:35]}  Qxe8 {[%clk 0:01:51]} 17. Bd6 {[%clk 0:02:13]}  Qg6 {[%clk 0:01:46]} 18. Bg3 {[%clk 0:02:10]}  h5 {[%clk 0:01:46]} 19. Nc4 {[%clk 0:01:49]}  Be6 {[%clk 0:01:27]} 20. Ne5 {[%clk 0:01:48]}  Qe8 {[%clk 0:01:22]} 21. Qa3 {[%clk 0:01:29]}  g5 {[%clk 0:01:13]} 22. h3 {[%clk 0:01:22]}  h4 {[%clk 0:00:55]} 23. Bh2 {[%clk 0:01:21]}  Kg7 {[%clk 0:00:55]} 24. Rac1 {[%clk 0:01:20]}  Rc8 {[%clk 0:00:52]} 25. Rxc8 {[%clk 0:01:20]}  Qxc8 {[%clk 0:00:51]} 26. Rc1 {[%clk 0:01:21]}  Qe8 {[%clk 0:00:38]} 27. Rc7+ {[%clk 0:01:19]}  Kh6 {[%clk 0:00:36]} 28. Qe7 {[%clk 0:00:59]}  Qxe7 {[%clk 0:00:29]} 29. Rxe7 {[%clk 0:01:00]}  Bxa2 {[%clk 0:00:29]} 30. Rxb7 {[%clk 0:01:00]}  Nbd5 {[%clk 0:00:30]} 31. Rxa7 {[%clk 0:00:59]}  Bb3 {[%clk 0:00:29]} 32. Ra3 {[%clk 0:00:59]}  Bc2 {[%clk 0:00:29]} 33. Ra5 {[%clk 0:00:50]}  Nc3 {[%clk 0:00:26]} 34. Nf7+ {[%clk 0:00:50]}  Kg6 {[%clk 0:00:24]} 35. Nxg5 {[%clk 0:00:50]}  Ne2+ {[%clk 0:00:22]} 36. Kh1 {[%clk 0:00:51]}  Nh5 {[%clk 0:00:21]} 37. Ne6 {[%clk 0:00:45]}  Bd3 {[%clk 0:00:20]} 38. Nf8+ {[%clk 0:00:44]}  Kh6 {[%clk 0:00:19]} 39. Be5 {[%clk 0:00:38]}  Bc4 {[%clk 0:00:11]} 40. Rc5 {[%clk 0:00:37]}  Bf7 {[%clk 0:00:10]} 41. Rc6+ {[%clk 0:00:37]}  Kg5 {[%clk 0:00:10]} 42. Nh7+ {[%clk 0:00:36]}  Kf5 {[%clk 0:00:07]} 43. Kh2 {[%clk 0:00:34]}  Nhg3 {[%clk 0:00:03]} 44. Rf6# {[%clk 0:00:31]} 1-0

[Event "January 2 Late 2024"]
[Site "https://www.chess.com"]
[Date "2024.01.02"]
[Round "1"]
[White "Arlo2024"]
[Black "Ismagilov, Damir"]
[Result "0-1"]
[Board "200"]
[TimeControl "180+1"]
[BlackFideId "34199982"]
[WhiteElo "2214"]
[BlackElo "2572"]
[BlackTeam "RUS"]
[WhiteClock "0:00:25"]
[BlackClock "0:00:31"]

1. e4 {[%clk 0:03:00]}  g6 {[%clk 0:02:26]} 2. d4 {[%clk 0:03:00]}  Bg7 {[%clk 0:02:24]} 3. Nf3 {[%clk 0:02:57]}  c5 {[%clk 0:02:19]} 4. c3 {[%clk 0:02:57]}  cxd4 {[%clk 0:02:16]} 5. cxd4 {[%clk 0:02:56]}  d5 {[%clk 0:02:12]} 6. e5 {[%clk 0:02:54]}  Nc6 {[%clk 0:02:10]} 7. Nc3 {[%clk 0:02:53]}  Bg4 {[%clk 0:02:08]} 8. Be2 {[%clk 0:02:51]}  e6 {[%clk 0:02:07]} 9. O-O {[%clk 0:02:51]}  Nge7 {[%clk 0:02:05]} 10. Bg5 {[%clk 0:02:46]}  O-O {[%clk 0:02:04]} 11. Qd2 {[%clk 0:02:29]}  Qb6 {[%clk 0:02:00]} 12. Rad1 {[%clk 0:02:23]}  Nf5 {[%clk 0:01:59]} 13. Be3 {[%clk 0:02:23]}  Nxe3 {[%clk 0:01:51]} 14. fxe3 {[%clk 0:02:22]}  Rac8 {[%clk 0:01:47]} 15. h3 {[%clk 0:02:16]}  Bxf3 {[%clk 0:01:46]} 16. Rxf3 {[%clk 0:02:16]}  Na5 {[%clk 0:01:44]} 17. Rdf1 {[%clk 0:02:10]}  Qb4 {[%clk 0:01:32]} 18. Bd3 {[%clk 0:01:49]}  a6 {[%clk 0:01:20]} 19. R1f2 {[%clk 0:01:49]}  Rc7 {[%clk 0:00:42]} 20. h4 {[%clk 0:01:32]}  Rfc8 {[%clk 0:00:38]} 21. h5 {[%clk 0:01:25]}  Nc4 {[%clk 0:00:39]} 22. Bxc4 {[%clk 0:01:21]}  Qxc4 {[%clk 0:00:40]} 23. a3 {[%clk 0:01:02]}  b5 {[%clk 0:00:39]} 24. hxg6 {[%clk 0:00:47]}  hxg6 {[%clk 0:00:40]} 25. Ne2 {[%clk 0:00:47]}  Qb3 {[%clk 0:00:36]} 26. Nf4 {[%clk 0:00:39]}  Rc2 {[%clk 0:00:33]} 27. Qe1 {[%clk 0:00:25]}  Rc1 {[%clk 0:00:31]} 0-1

[Event "January 2 Late 2024"]
[Site "https://www.chess.com"]
[Date "2024.01.02"]
[Round "1"]
[White "Roberson, Peter T"]
[Black "Keller, Peter"]
[Result "1/2-1/2"]
[Board "205"]
[TimeControl "180+1"]
[WhiteFideId "412384"]
[BlackFideId "1272105"]
[WhiteElo "2566"]
[BlackElo "2197"]
[WhiteTeam "ENG"]
[BlackTeam "GER"]
[WhiteClock "0:00:03"]
[BlackClock "0:00:12"]

1. b3 {[%clk 0:03:00]}  e5 {[%clk 0:02:58]} 2. Bb2 {[%clk 0:03:01]}  Nc6 {[%clk 0:02:58]} 3. e3 {[%clk 0:02:58]}  Nf6 {[%clk 0:02:58]} 4. Bb5 {[%clk 0:02:58]}  e4 {[%clk 0:02:58]} 5. Ne2 {[%clk 0:02:55]}  a6 {[%clk 0:02:58]} 6. Bxc6 {[%clk 0:02:55]}  dxc6 {[%clk 0:02:59]} 7. Ng3 {[%clk 0:02:54]}  h5 {[%clk 0:02:54]} 8. Bxf6 {[%clk 0:02:51]}  Qxf6 {[%clk 0:02:53]} 9. Nc3 {[%clk 0:02:52]}  Bg4 {[%clk 0:02:42]} 10. Ngxe4 {[%clk 0:02:40]}  Qg6 {[%clk 0:02:35]} 11. f3 {[%clk 0:02:40]}  Be6 {[%clk 0:02:27]} 12. Qe2 {[%clk 0:02:39]}  Ba3 {[%clk 0:02:26]} 13. O-O {[%clk 0:02:37]}  f5 {[%clk 0:02:20]} 14. Ng3 {[%clk 0:02:29]}  h4 {[%clk 0:02:21]} 15. Nh1 {[%clk 0:02:29]}  O-O-O {[%clk 0:02:18]} 16. Nf2 {[%clk 0:02:19]}  Qf6 {[%clk 0:02:10]} 17. Rad1 {[%clk 0:02:07]}  Bb4 {[%clk 0:02:04]} 18. Nd3 {[%clk 0:01:26]}  Bxc3 {[%clk 0:02:02]} 19. dxc3 {[%clk 0:01:27]}  Qxc3 {[%clk 0:02:00]} 20. f4 {[%clk 0:01:27]}  Bd5 {[%clk 0:01:44]} 21. Ne5 {[%clk 0:01:24]}  Be4 {[%clk 0:01:32]} 22. Ng6 {[%clk 0:01:04]}  Rhe8 {[%clk 0:01:20]} 23. Nxh4 {[%clk 0:00:59]}  Bxc2 {[%clk 0:01:11]} 24. Rc1 {[%clk 0:00:58]}  Rd2 {[%clk 0:01:08]} 25. Qh5 {[%clk 0:00:51]}  Qxe3+ {[%clk 0:01:04]} 26. Kh1 {[%clk 0:00:52]}  Kb8 {[%clk 0:00:56]} 27. Nf3 {[%clk 0:00:35]}  Re2 {[%clk 0:00:47]} 28. Ne5 {[%clk 0:00:31]}  Rxe5 {[%clk 0:00:31]} 29. fxe5 {[%clk 0:00:32]}  Be4 {[%clk 0:00:20]} 30. Qh8+ {[%clk 0:00:27]}  Ka7 {[%clk 0:00:20]} 31. Qxg7 {[%clk 0:00:28]}  Rxg2 {[%clk 0:00:16]} 32. Qxg2 {[%clk 0:00:29]}  f4 {[%clk 0:00:15]} 33. Rce1 {[%clk 0:00:24]}  Bxg2+ {[%clk 0:00:13]} 34. Kxg2 {[%clk 0:00:25]}  Qd2+ {[%clk 0:00:14]} 35. Kf3 {[%clk 0:00:25]}  Qxh2 {[%clk 0:00:10]} 36. e6 {[%clk 0:00:21]}  Qg3+ {[%clk 0:00:10]} 37. Ke4 {[%clk 0:00:22]}  f3 {[%clk 0:00:08]} 38. e7 {[%clk 0:00:20]}  Qg6+ {[%clk 0:00:08]} 39. Kd4 {[%clk 0:00:08]}  Qd6+ {[%clk 0:00:08]} 40. Kc3 {[%clk 0:00:07]}  Qf6+ {[%clk 0:00:08]} 41. Kc2 {[%clk 0:00:06]}  Qf5+ {[%clk 0:00:08]} 42. Kb2 {[%clk 0:00:05]}  Qf6+ {[%clk 0:00:08]} 43. Ka3 {[%clk 0:00:04]}  Qd6+ {[%clk 0:00:09]} 44. Kb2 {[%clk 0:00:04]}  Qf6+ {[%clk 0:00:09]} 45. Kc2 {[%clk 0:00:05]}  Qf5+ {[%clk 0:00:10]} 46. Kd2 {[%clk 0:00:05]}  Qd5+ {[%clk 0:00:08]} 47. Ke3 {[%clk 0:00:05]}  Qe6+ {[%clk 0:00:09]} 48. Kxf3 {[%clk 0:00:06]}  Qf5+ {[%clk 0:00:09]} 49. Kg3 {[%clk 0:00:07]}  Qg5+ {[%clk 0:00:10]} 50. Kf3 {[%clk 0:00:07]}  Qf5+ {[%clk 0:00:10]} 51. Ke3 {[%clk 0:00:08]}  Qe5+ {[%clk 0:00:11]} 52. Kd3 {[%clk 0:00:09]}  Qd5+ {[%clk 0:00:11]} 53. Kc3 {[%clk 0:00:08]}  Qc5+ {[%clk 0:00:12]} 54. Kb2 {[%clk 0:00:07]}  Qd4+ {[%clk 0:00:12]} 55. Kc2 {[%clk 0:00:06]}  Qc5+ {[%clk 0:00:12]} 56. Kb2 {[%clk 0:00:04]}  Qd4+ {[%clk 0:00:12]} 57. Ka3 {[%clk 0:00:05]}  Qc5+ {[%clk 0:00:12]} 58. Kb2 {[%clk 0:00:03]} 1/2-1/2

[Event "January 2 Late 2024"]
[Site "https://www.chess.com"]
[Date "2024.01.02"]
[Round "1"]
[White "Yushko, Olga"]
[Black "Cervantes Landeiro, Thalia"]
[Result "0-1"]
[Board "206"]
[TimeControl "180+1"]
[WhiteFideId "14114500"]
[BlackFideId "3520498"]
[WhiteElo "2186"]
[BlackElo "2565"]
[WhiteTeam "UKR"]
[BlackTeam "USA"]
[WhiteClock "0:00:00"]
[BlackClock "0:00:18"]

1. d4 {[%clk 0:02:54]}  Nf6 {[%clk 0:02:59]} 2. c4 {[%clk 0:02:51]}  g6 {[%clk 0:02:59]} 3. Nf3 {[%clk 0:02:44]}  Bg7 {[%clk 0:02:59]} 4. Nc3 {[%clk 0:02:41]}  d5 {[%clk 0:02:58]} 5. Bg5 {[%clk 0:02:40]}  Ne4 {[%clk 0:02:57]} 6. Bh4 {[%clk 0:02:39]}  Nxc3 {[%clk 0:02:57]} 7. bxc3 {[%clk 0:02:39]}  dxc4 {[%clk 0:02:57]} 8. e4 {[%clk 0:02:38]}  Be6 {[%clk 0:02:55]} 9. Be2 {[%clk 0:02:32]}  c5 {[%clk 0:02:43]} 10. O-O {[%clk 0:02:31]}  cxd4 {[%clk 0:02:42]} 11. cxd4 {[%clk 0:02:29]}  O-O {[%clk 0:02:42]} 12. Rb1 {[%clk 0:02:28]}  b6 {[%clk 0:02:33]} 13. d5 {[%clk 0:02:27]}  Bg4 {[%clk 0:02:33]} 14. Bxc4 {[%clk 0:02:27]}  Nd7 {[%clk 0:02:33]} 15. d6 {[%clk 0:02:12]}  Bf6 {[%clk 0:02:28]} 16. Bg3 {[%clk 0:01:58]}  exd6 {[%clk 0:02:25]} 17. Bxd6 {[%clk 0:01:54]}  Re8 {[%clk 0:02:25]} 18. Bd5 {[%clk 0:01:49]}  Rc8 {[%clk 0:02:22]} 19. Qb3 {[%clk 0:01:42]}  Be6 {[%clk 0:02:09]} 20. Rfd1 {[%clk 0:01:36]}  Bxd5 {[%clk 0:01:43]} 21. Rxd5 {[%clk 0:01:35]}  Re6 {[%clk 0:01:38]} 22. e5 {[%clk 0:01:18]}  Bg7 {[%clk 0:01:17]} 23. Nd4 {[%clk 0:01:11]}  Re8 {[%clk 0:01:17]} 24. Nf3 {[%clk 0:01:04]}  Bh6 {[%clk 0:00:42]} 25. Rbd1 {[%clk 0:01:00]}  Rc1 {[%clk 0:00:30]} 26. h3 {[%clk 0:00:58]}  Rxd1+ {[%clk 0:00:28]} 27. Qxd1 {[%clk 0:00:54]}  Qc8 {[%clk 0:00:29]} 28. Bb4 {[%clk 0:00:37]}  Nf8 {[%clk 0:00:28]} 29. Bd6 {[%clk 0:00:28]}  Ne6 {[%clk 0:00:28]} 30. g3 {[%clk 0:00:26]}  Qc6 {[%clk 0:00:28]} 31. Rd3 {[%clk 0:00:22]}  Rc8 {[%clk 0:00:27]} 32. Nd4 {[%clk 0:00:21]}  Qe4 {[%clk 0:00:22]} 33. Nxe6 {[%clk 0:00:18]}  Rc1 {[%clk 0:00:21]} 34. Qxc1 {[%clk 0:00:12]}  Bxc1 {[%clk 0:00:22]} 35. Rc3 {[%clk 0:00:11]}  Qe1+ {[%clk 0:00:21]} 36. Kg2 {[%clk 0:00:11]}  Qxc3 {[%clk 0:00:21]} 37. Nc7 {[%clk 0:00:07]}  Qc6+ {[%clk 0:00:19]} 38. Kf1 {[%clk 0:00:06]}  Qh1+ {[%clk 0:00:18]} 39. Ke2 {[%clk 0:00:06]}  Qxh3 {[%clk 0:00:18]} 40. Nb5 {[%clk 0:00:00]}  Qg4+ {[%clk 0:00:18]} 0-1